[Event "Live Chess"]
[Site "Chess.com"]
[Date "2024.06.01"]
[Round "-"]
[White "StoreySniper"]
[Black "Queensandpawns"]
[Result "1-0"]
[WhiteElo "2536"]
[BlackElo "2378"]
[TimeControl "300"]
[EndTime "13:07:25 PDT"]
[Termination "StoreySniper won by resignation"]

1. c4 {[%clk 0:04:56]} 1... c5 {[%clk 0:04:52.3]} 2. g3 {[%clk 0:04:54.8]} 2...
g6 {[%clk 0:04:50.6]} 3. Bg2 {[%clk 0:04:54.5]} 3... Bg7 {[%clk 0:04:49.9]} 4.
Nc3 {[%clk 0:04:53.9]} 4... Nc6 {[%clk 0:04:47.9]} 5. Nf3 {[%clk 0:04:53.3]}
5... Nf6 {[%clk 0:04:46.9]} 6. d4 {[%clk 0:04:51.8]} 6... O-O {[%clk 0:04:45.9]}
7. d5 {[%clk 0:04:50.7]} 7... Nb8 {[%clk 0:04:44.8]} 8. e4 {[%clk 0:04:49.8]}
8... d6 {[%clk 0:04:43.5]} 9. h3 {[%clk 0:04:48.1]} 9... a6 {[%clk 0:04:42.3]}
10. a4 {[%clk 0:04:46.4]} 10... Nbd7 {[%clk 0:04:41.7]} 11. O-O {[%clk
0:04:44.7]} 11... Rb8 {[%clk 0:04:39.3]} 12. Bg5 {[%clk 0:04:41]} 12... h6
{[%clk 0:04:37.8]} 13. Bf4 {[%clk 0:04:36.7]} 13... g5 {[%clk 0:04:36.2]} 14.
Be3 {[%clk 0:04:32.1]} 14... Nb6 {[%clk 0:04:32.6]} 15. b3 {[%clk 0:04:30.1]}
15... e5 {[%clk 0:04:27.6]} 16. Qd2 {[%clk 0:04:26.7]} 16... Nxe4 {[%clk
0:04:20.8]} 17. Nxe4 {[%clk 0:04:23.7]} 17... f5 {[%clk 0:04:20.7]} 18. Nxc5
{[%clk 0:04:09.6]} 18... dxc5 {[%clk 0:04:09.6]} 19. Bxc5 {[%clk 0:04:08.2]}
19... Re8 {[%clk 0:04:09.3]} 20. Rfe1 {[%clk 0:03:56.7]} 20... e4 {[%clk
0:04:05.9]} 21. Nd4 {[%clk 0:03:50.1]} 21... Nd7 {[%clk 0:04:04.9]} 22. Bd6
{[%clk 0:03:37.6]} 22... Ra8 {[%clk 0:04:03.2]} 23. Ne6 {[%clk 0:03:34.1]} 23...
Qb6 {[%clk 0:03:56]} 24. Nxg7 {[%clk 0:03:33]} 24... Kxg7 {[%clk 0:03:55.9]} 25.
c5 {[%clk 0:03:29.4]} 25... Qd8 {[%clk 0:03:54.4]} 26. Qd4+ {[%clk 0:03:20]}
26... Nf6 {[%clk 0:03:52.5]} 27. Be5 {[%clk 0:03:12.3]} 27... Kf7 {[%clk
0:03:45.5]} 28. d6 {[%clk 0:03:06.3]} 28... Be6 {[%clk 0:03:43.4]} 29. b4 {[%clk
0:02:59.7]} 29... Nd7 {[%clk 0:03:41.2]} 30. f3 {[%clk 0:02:48.5]} 30... Nxe5
{[%clk 0:03:32.2]} 31. Qxe5 {[%clk 0:02:47.6]} 31... Bd7 {[%clk 0:03:27.9]} 32.
Qd5+ {[%clk 0:02:42.4]} 32... Be6 {[%clk 0:03:23.3]} 33. Qxb7+ {[%clk
0:02:40.2]} 33... Qd7 {[%clk 0:03:23.2]} 1-0

[Event "Live Chess"]
[Site "Chess.com"]
[Date "2024.06.01"]
[Round "-"]
[White "nitrofish07"]
[Black "Sweet-O"]
[Result "1-0"]
[WhiteElo "2103"]
[BlackElo "1550"]
[TimeControl "300"]
[EndTime "13:07:26 PDT"]
[Termination "nitrofish07 won by resignation"]

1. e4 {[%clk 0:04:58.3]} 1... e5 {[%clk 0:04:59.4]} 2. Nf3 {[%clk 0:04:57]} 2...
Nf6 {[%clk 0:04:58.8]} 3. Bc4 {[%clk 0:04:54.1]} 3... Bc5 {[%clk 0:04:51]} 4.
O-O {[%clk 0:04:52.7]} 4... d6 {[%clk 0:04:48.2]} 5. c3 {[%clk 0:04:51.1]} 5...
Bg4 {[%clk 0:04:45.9]} 6. d4 {[%clk 0:04:50.2]} 6... exd4 {[%clk 0:04:44.2]} 7.
cxd4 {[%clk 0:04:50.1]} 7... Bb6 {[%clk 0:04:43.3]} 8. e5 {[%clk 0:04:49.3]}
8... dxe5 {[%clk 0:04:41.2]} 9. Bxf7+ {[%clk 0:04:44.7]} 9... Kxf7 {[%clk
0:04:38.2]} 10. Nxe5+ {[%clk 0:04:44.1]} 10... Kg8 {[%clk 0:04:30]} 11. Qb3+
{[%clk 0:04:30.7]} 11... Nd5 {[%clk 0:04:11.5]} 12. Nxg4 {[%clk 0:04:24.1]}
12... c6 {[%clk 0:03:57.5]} 13. Ne3 {[%clk 0:04:18.8]} 13... Bxd4 {[%clk
0:03:45.5]} 14. Nc3 {[%clk 0:04:16.9]} 14... Kf8 {[%clk 0:03:33.6]} 15. Ncxd5
{[%clk 0:04:14.1]} 15... cxd5 {[%clk 0:03:31.9]} 16. Nxd5 {[%clk 0:04:14]} 16...
Nc6 {[%clk 0:03:20.6]} 17. Rd1 {[%clk 0:04:09.7]} 17... Qh4 {[%clk 0:03:05.4]}
18. Qf3+ {[%clk 0:04:02.2]} 18... Bf6 {[%clk 0:02:54]} 19. Nxf6 {[%clk
0:03:56.1]} 19... Qxf6 {[%clk 0:02:50.5]} 20. Qxf6+ {[%clk 0:03:54.6]} 20...
gxf6 {[%clk 0:02:50.4]} 21. Rd7 {[%clk 0:03:52.1]} 21... Rd8 {[%clk 0:02:41.8]}
22. Bh6+ {[%clk 0:03:46.3]} 22... Ke8 {[%clk 0:02:39.7]} 23. Rxb7 {[%clk
0:03:38.2]} 23... Nd4 {[%clk 0:02:30.7]} 24. Re1+ {[%clk 0:03:36.2]} 1-0

[Event "Live Chess"]
[Site "Chess.com"]
[Date "2024.06.01"]
[Round "-"]
[White "PaulHumphreys"]
[Black "Brooms1989"]
[Result "1-0"]
[WhiteElo "1397"]
[BlackElo "1096"]
[TimeControl "300"]
[EndTime "13:07:26 PDT"]
[Termination "PaulHumphreys won by resignation"]

1. d4 {[%clk 0:04:57.4]} 1... Nf6 {[%clk 0:04:58.6]} 2. Nc3 {[%clk 0:04:56.8]}
2... d5 {[%clk 0:04:55.1]} 3. Bf4 {[%clk 0:04:55.6]} 3... c5 {[%clk 0:04:50.6]}
4. e3 {[%clk 0:04:50.3]} 4... cxd4 {[%clk 0:04:46]} 5. exd4 {[%clk 0:04:47.6]}
5... a6 {[%clk 0:04:45.4]} 6. Nf3 {[%clk 0:04:43.8]} 6... Qb6 {[%clk 0:04:35.4]}
7. Rb1 {[%clk 0:04:39]} 7... Bd7 {[%clk 0:04:19.1]} 8. a3 {[%clk 0:04:28]} 8...
e6 {[%clk 0:04:13.6]} 9. Be2 {[%clk 0:04:24.4]} 9... Bd6 {[%clk 0:04:11.8]} 10.
Bg3 {[%clk 0:04:20.9]} 10... O-O {[%clk 0:04:07.1]} 11. Ne5 {[%clk 0:04:19.5]}
11... Bxe5 {[%clk 0:04:03.3]} 12. dxe5 {[%clk 0:04:14.3]} 12... Ne4 {[%clk
0:03:55.7]} 13. Nxe4 {[%clk 0:04:10.7]} 13... dxe4 {[%clk 0:03:53.4]} 14. O-O
{[%clk 0:04:06.1]} 14... Nc6 {[%clk 0:03:40.5]} 15. Qxd7 {[%clk 0:03:54.5]} 1-0

[Event "Live Chess"]
[Site "Chess.com"]
[Date "2024.06.01"]
[Round "-"]
[White "TigerTank70"]
[Black "imchessive"]
[Result "1-0"]
[WhiteElo "2214"]
[BlackElo "1597"]
[TimeControl "300"]
[EndTime "13:07:31 PDT"]
[Termination "TigerTank70 won by resignation"]

1. e4 {[%clk 0:04:53.7]} 1... c5 {[%clk 0:04:58.7]} 2. d4 {[%clk 0:04:52.8]}
2... cxd4 {[%clk 0:04:56.5]} 3. c3 {[%clk 0:04:52.3]} 3... dxc3 {[%clk
0:04:52.7]} 4. Nxc3 {[%clk 0:04:52.2]} 4... e6 {[%clk 0:04:52.1]} 5. Nf3 {[%clk
0:04:51.6]} 5... a6 {[%clk 0:04:51.2]} 6. Bc4 {[%clk 0:04:50.7]} 6... Qc7 {[%clk
0:04:49.5]} 7. Qe2 {[%clk 0:04:49.3]} 7... Nf6 {[%clk 0:04:47.8]} 8. O-O {[%clk
0:04:47]} 8... b5 {[%clk 0:04:41.8]} 9. Bd3 {[%clk 0:04:45.1]} 9... Bb7 {[%clk
0:04:39.3]} 10. Bg5 {[%clk 0:04:43.1]} 10... Be7 {[%clk 0:04:36.9]} 11. Rac1
{[%clk 0:04:41.2]} 11... Nc6 {[%clk 0:04:32.4]} 12. e5 {[%clk 0:04:28.6]} 12...
Ng4 {[%clk 0:04:19.8]} 13. Bxe7 {[%clk 0:04:22.8]} 13... Kxe7 {[%clk 0:04:18.3]}
14. Ne4 {[%clk 0:04:16.9]} 14... Ngxe5 {[%clk 0:04:04.2]} 15. Bb1 {[%clk
0:04:14.1]} 15... Nxf3+ {[%clk 0:03:42.2]} 16. Qxf3 {[%clk 0:04:14]} 16... Qe5
{[%clk 0:03:32.2]} 17. Rfe1 {[%clk 0:04:05.5]} 17... Nd4 {[%clk 0:03:17.6]} 18.
Qa3+ {[%clk 0:04:03.6]} 18... d6 {[%clk 0:02:35.8]} 19. Rc7+ {[%clk 0:03:40.5]}
19... Kd8 {[%clk 0:02:19.9]} 20. Rxb7 {[%clk 0:03:35.5]} 20... Nf5 {[%clk
0:01:43.6]} 21. Qa5+ {[%clk 0:03:11.9]} 21... Ke8 {[%clk 0:01:35.9]} 22. Qc7
{[%clk 0:03:09.4]} 1-0

[Event "Live Chess"]
[Site "Chess.com"]
[Date "2024.06.01"]
[Round "-"]
[White "f4nomore"]
[Black "alicechristina"]
[Result "0-1"]
[WhiteElo "1205"]
[BlackElo "1842"]
[TimeControl "300"]
[EndTime "13:07:50 PDT"]
[Termination "alicechristina won by resignation"]

1. d4 {[%clk 0:04:56.8]} 1... d5 {[%clk 0:04:56.9]} 2. Nc3 {[%clk 0:04:54.9]}
2... e6 {[%clk 0:04:55.6]} 3. Nf3 {[%clk 0:04:52.5]} 3... c5 {[%clk 0:04:54.7]}
4. e3 {[%clk 0:04:49.4]} 4... c4 {[%clk 0:04:53.3]} 5. Be2 {[%clk 0:04:47.4]}
5... Nc6 {[%clk 0:04:50.8]} 6. O-O {[%clk 0:04:46]} 6... Nf6 {[%clk 0:04:49.9]}
7. Bd2 {[%clk 0:04:44]} 7... Bd6 {[%clk 0:04:49.1]} 8. b3 {[%clk 0:04:42.4]}
8... cxb3 {[%clk 0:04:47.4]} 9. cxb3 {[%clk 0:04:39.9]} 9... O-O {[%clk
0:04:46.8]} 10. h3 {[%clk 0:04:37.4]} 10... Ne4 {[%clk 0:04:41.4]} 11. Nb5
{[%clk 0:04:27.3]} 11... Bb8 {[%clk 0:04:39.3]} 12. Bd3 {[%clk 0:04:17]} 12...
Nxd2 {[%clk 0:04:34]} 13. Qxd2 {[%clk 0:04:09.7]} 13... a6 {[%clk 0:04:33]} 14.
Nc3 {[%clk 0:04:07]} 14... Nb4 {[%clk 0:04:31.8]} 15. Be2 {[%clk 0:04:03.2]}
15... Nc6 {[%clk 0:04:22.6]} 16. a3 {[%clk 0:03:55.3]} 16... b5 {[%clk
0:04:21.5]} 17. b4 {[%clk 0:03:54.1]} 17... Bb7 {[%clk 0:04:20.5]} 18. Rac1
{[%clk 0:03:51.8]} 18... Qd6 {[%clk 0:04:17.9]} 19. Bd3 {[%clk 0:03:46.1]} 19...
Ne7 {[%clk 0:04:10.4]} 20. g3 {[%clk 0:03:44]} 20... Ng6 {[%clk 0:04:08.8]} 21.
Bxg6 {[%clk 0:03:35]} 21... hxg6 {[%clk 0:04:03.8]} 22. Ne5 {[%clk 0:03:32.8]}
22... Kh7 {[%clk 0:03:59.9]} 23. Qe2 {[%clk 0:03:29]} 23... f6 {[%clk
0:03:56.9]} 24. Nf3 {[%clk 0:03:13]} 24... Rh8 {[%clk 0:03:55.3]} 25. h4 {[%clk
0:03:03.6]} 25... Kg8 {[%clk 0:03:46.9]} 26. Nxb5 {[%clk 0:02:37.3]} 26... axb5
{[%clk 0:03:43.5]} 27. Qxb5 {[%clk 0:02:35.2]} 27... Ba6 {[%clk 0:03:31.3]} 28.
Qe8+ {[%clk 0:02:28.5]} 28... Kh7 {[%clk 0:03:26.6]} 29. Qa4 {[%clk 0:02:18.5]}
29... Bc7 {[%clk 0:03:10.7]} 30. Rc6 {[%clk 0:02:09.6]} 30... Qd7 {[%clk
0:03:04.2]} 31. Rxa6 {[%clk 0:01:59]} 31... Qxa4 {[%clk 0:03:02.8]} 32. Rxa4
{[%clk 0:01:55.8]} 32... Rxa4 {[%clk 0:03:02.4]} 33. Rc1 {[%clk 0:01:44.8]}
33... Bd6 {[%clk 0:02:52.6]} 34. b5 {[%clk 0:01:40.1]} 34... Rxa3 {[%clk
0:02:50.8]} 35. Rc6 {[%clk 0:01:37.5]} 35... Rd8 {[%clk 0:02:47.4]} 36. b6
{[%clk 0:01:32.8]} 36... Rb3 {[%clk 0:02:44.9]} 37. Nd2 {[%clk 0:01:26.6]} 37...
Rb2 {[%clk 0:02:43.1]} 38. Nf3 {[%clk 0:01:21.1]} 38... e5 {[%clk 0:02:41.5]}
39. dxe5 {[%clk 0:01:17.6]} 39... Bxe5 {[%clk 0:02:40.8]} 40. Kg2 {[%clk
0:01:02.1]} 40... Rb8 {[%clk 0:02:39.4]} 41. Nxe5 {[%clk 0:00:56.3]} 41... fxe5
{[%clk 0:02:38.2]} 42. Rd6 {[%clk 0:00:54]} 42... Rb5 {[%clk 0:02:35]} 43. Re6
{[%clk 0:00:49.2]} 43... e4 {[%clk 0:02:33.4]} 44. Kh3 {[%clk 0:00:41]} 44...
R8xb6 {[%clk 0:02:32.1]} 45. Re7 {[%clk 0:00:38.9]} 45... Rb2 {[%clk 0:02:28.2]}
46. f4 {[%clk 0:00:34.4]} 46... exf3 {[%clk 0:02:26.5]} 47. Rf7 {[%clk
0:00:32.1]} 47... Rf6 {[%clk 0:02:25.1]} 0-1

[Event "Live Chess"]
[Site "Chess.com"]
[Date "2024.06.01"]
[Round "-"]
[White "FlyingChessKestrel13"]
[Black "Tushinskiy"]
[Result "0-1"]
[WhiteElo "2074"]
[BlackElo "2268"]
[TimeControl "300"]
[EndTime "13:08:06 PDT"]
[Termination "Tushinskiy won by resignation"]

1. Nf3 {[%clk 0:04:56.7]} 1... d5 {[%clk 0:04:59]} 2. g3 {[%clk 0:04:54.4]} 2...
c6 {[%clk 0:04:58.9]} 3. Bg2 {[%clk 0:04:53.6]} 3... Nf6 {[%clk 0:04:57.8]} 4.
O-O {[%clk 0:04:53.5]} 4... Qc7 {[%clk 0:04:54.3]} 5. d3 {[%clk 0:04:53.4]} 5...
e5 {[%clk 0:04:53.1]} 6. Nbd2 {[%clk 0:04:14.1]} 6... Bg4 {[%clk 0:04:49.2]} 7.
h3 {[%clk 0:04:07.7]} 7... Bh5 {[%clk 0:04:47.4]} 8. c4 {[%clk 0:04:04.9]} 8...
d4 {[%clk 0:04:44.8]} 9. g4 {[%clk 0:04:02]} 9... Bg6 {[%clk 0:04:43.3]} 10. a3
{[%clk 0:03:57.3]} 10... Nbd7 {[%clk 0:04:41.9]} 11. b4 {[%clk 0:03:56.1]} 11...
Be7 {[%clk 0:04:38.2]} 12. c5 {[%clk 0:03:55.4]} 12... O-O {[%clk 0:04:36.1]}
13. Nc4 {[%clk 0:03:54.8]} 13... Rae8 {[%clk 0:04:33.2]} 14. g5 {[%clk
0:03:54.1]} 14... Nh5 {[%clk 0:04:30.8]} 15. Nh4 {[%clk 0:03:51.7]} 15... Nf4
{[%clk 0:04:24.1]} 16. Bxf4 {[%clk 0:03:48.8]} 16... exf4 {[%clk 0:04:24]} 17.
Nxg6 {[%clk 0:03:48]} 17... hxg6 {[%clk 0:04:22.5]} 18. h4 {[%clk 0:03:47.2]}
18... Ne5 {[%clk 0:04:17.2]} 19. Nxe5 {[%clk 0:03:44.3]} 19... Qxe5 {[%clk
0:04:17.1]} 20. Rc1 {[%clk 0:03:39.8]} 20... Bd8 {[%clk 0:04:12.7]} 21. Re1
{[%clk 0:03:36.1]} 21... Bc7 {[%clk 0:04:11.9]} 22. Bf3 {[%clk 0:03:34.3]} 22...
Qf5 {[%clk 0:04:08.7]} 23. Kg2 {[%clk 0:03:32.2]} 23... f6 {[%clk 0:04:06.3]}
24. gxf6 {[%clk 0:03:25.6]} 24... Rxf6 {[%clk 0:04:05.2]} 25. Rg1 {[%clk
0:03:22.9]} 25... Rfe6 {[%clk 0:03:58.5]} 26. Kf1 {[%clk 0:03:21.4]} 26... Qh3+
{[%clk 0:03:56.1]} 27. Ke1 {[%clk 0:03:20.4]} 27... Qxf3 {[%clk 0:03:50.7]} 28.
h5 {[%clk 0:03:16.7]} 28... Rxe2+ {[%clk 0:03:48.3]} 0-1

[Event "Live Chess"]
[Site "Chess.com"]
[Date "2024.06.01"]
[Round "-"]
[White "RichardABates"]
[Black "chessgoatpawel"]
[Result "1/2-1/2"]
[WhiteElo "2213"]
[BlackElo "1990"]
[TimeControl "300"]
[EndTime "13:08:27 PDT"]
[Termination "Game drawn by repetition"]

1. d4 {[%clk 0:04:54.2]} 1... Nf6 {[%clk 0:04:57.7]} 2. Nf3 {[%clk 0:04:52.3]}
2... g6 {[%clk 0:04:56.4]} 3. g3 {[%clk 0:04:49.3]} 3... Bg7 {[%clk 0:04:54.5]}
4. c4 {[%clk 0:04:47.6]} 4... O-O {[%clk 0:04:52.4]} 5. Bg2 {[%clk 0:04:45.8]}
5... d5 {[%clk 0:04:51.3]} 6. cxd5 {[%clk 0:04:40.7]} 6... Nxd5 {[%clk
0:04:49.2]} 7. O-O {[%clk 0:04:39.6]} 7... c6 {[%clk 0:04:42.1]} 8. e4 {[%clk
0:04:36.7]} 8... Nf6 {[%clk 0:04:40.3]} 9. Nc3 {[%clk 0:04:34.9]} 9... Nbd7
{[%clk 0:04:35.8]} 10. h3 {[%clk 0:04:31.8]} 10... Re8 {[%clk 0:04:33.5]} 11.
Be3 {[%clk 0:04:28.8]} 11... e5 {[%clk 0:04:31.1]} 12. dxe5 {[%clk 0:04:27.4]}
12... Nxe5 {[%clk 0:04:30.7]} 13. Nxe5 {[%clk 0:04:23]} 13... Qxd1 {[%clk
0:04:27]} 14. Raxd1 {[%clk 0:04:20.2]} 14... Rxe5 {[%clk 0:04:23.5]} 15. f4
{[%clk 0:04:04.9]} 15... Re8 {[%clk 0:04:02.8]} 16. e5 {[%clk 0:04:03.3]} 16...
Nh5 {[%clk 0:04:01.2]} 17. Bf2 {[%clk 0:03:58]} 17... f6 {[%clk 0:03:53.1]} 18.
Rfe1 {[%clk 0:03:21.3]} 18... fxe5 {[%clk 0:03:24.5]} 19. fxe5 {[%clk
0:03:18.4]} 19... Rxe5 {[%clk 0:03:10.9]} 20. Rd8+ {[%clk 0:03:11.2]} 20... Kf7
{[%clk 0:03:08.6]} 21. Ne4 {[%clk 0:03:09.7]} 21... Ke7 {[%clk 0:02:48.4]} 22.
Red1 {[%clk 0:02:56.8]} 22... Rd5 {[%clk 0:02:33.9]} 23. R8xd5 {[%clk
0:02:29.2]} 23... cxd5 {[%clk 0:02:33.8]} 24. Rxd5 {[%clk 0:02:27.4]} 24... Bxb2
{[%clk 0:02:19.8]} 25. g4 {[%clk 0:02:23.1]} 25... Nf4 {[%clk 0:02:17.4]} 26.
Bh4+ {[%clk 0:02:19.3]} 26... Ke8 {[%clk 0:02:09.4]} 27. Nd6+ {[%clk 0:02:06.4]}
27... Kf8 {[%clk 0:02:02.4]} 28. Rd2 {[%clk 0:02:04.6]} 28... Nxg2 {[%clk
0:01:59.5]} 29. Kxg2 {[%clk 0:01:52.8]} 29... Be5 {[%clk 0:01:55.1]} 30. Rf2+
{[%clk 0:01:48.3]} 30... Kg8 {[%clk 0:01:49.6]} 31. Nf7 {[%clk 0:01:41.6]} 31...
Bg7 {[%clk 0:01:45.8]} 32. Bg5 {[%clk 0:01:25.9]} 32... Be6 {[%clk 0:01:38.5]}
33. Nh6+ {[%clk 0:01:24]} 33... Bxh6 {[%clk 0:01:36.7]} 34. Bxh6 {[%clk
0:01:22.8]} 34... Rc8 {[%clk 0:01:34.3]} 35. Kg3 {[%clk 0:01:17.6]} 35... Rc3+
{[%clk 0:01:29.4]} 36. Kf4 {[%clk 0:01:16.4]} 36... Bf7 {[%clk 0:01:26.5]} 37.
Rd2 {[%clk 0:01:12.7]} 37... Rc8 {[%clk 0:01:21.9]} 38. Rd7 {[%clk 0:01:09.7]}
38... Rb8 {[%clk 0:01:13.5]} 39. a4 {[%clk 0:01:03.7]} 39... a5 {[%clk
0:00:58.7]} 40. Ke5 {[%clk 0:00:58.3]} 40... b5 {[%clk 0:00:52.6]} 41. axb5
{[%clk 0:00:40.6]} 41... Rxb5+ {[%clk 0:00:52.5]} 42. Kf6 {[%clk 0:00:37.3]}
42... Rb6+ {[%clk 0:00:50.5]} 43. Kg5 {[%clk 0:00:35.1]} 43... Rb5+ {[%clk
0:00:48.6]} 44. Kh4 {[%clk 0:00:33]} 44... Rb8 {[%clk 0:00:44.5]} 45. Ra7 {[%clk
0:00:31.8]} 45... a4 {[%clk 0:00:33.3]} 46. Rxa4 {[%clk 0:00:29.9]} 46... Be6
{[%clk 0:00:29.5]} 47. Ra7 {[%clk 0:00:28.1]} 47... Bf7 {[%clk 0:00:28.4]} 48.
Bf4 {[%clk 0:00:26.3]} 48... Re8 {[%clk 0:00:24.6]} 49. Kg5 {[%clk 0:00:24.8]}
49... Bc4 {[%clk 0:00:22.8]} 50. Kh6 {[%clk 0:00:23]} 50... Bf7 {[%clk
0:00:21.5]} 51. Bd6 {[%clk 0:00:19.2]} 51... Rd8 {[%clk 0:00:20.1]} 52. Be7
{[%clk 0:00:16.8]} 52... Re8 {[%clk 0:00:19.4]} 53. Bf6 {[%clk 0:00:15.7]} 53...
Re6 {[%clk 0:00:18.6]} 54. Ra8+ {[%clk 0:00:14.2]} 54... Re8 {[%clk 0:00:18]}
55. Ra7 {[%clk 0:00:13]} 55... Re6 {[%clk 0:00:17.2]} 56. Ra8+ {[%clk
0:00:12.3]} 56... Re8 {[%clk 0:00:16.5]} 57. Ra7 {[%clk 0:00:11.5]} 1/2-1/2

[Event "Live Chess"]
[Site "Chess.com"]
[Date "2024.06.01"]
[Round "-"]
[White "PureDashingOctopus"]
[Black "GoldsmanB"]
[Result "1-0"]
[WhiteElo "2269"]
[BlackElo "1088"]
[TimeControl "300"]
[EndTime "13:08:41 PDT"]
[Termination "PureDashingOctopus won by resignation"]

1. e4 {[%clk 0:04:59]} 1... e6 {[%clk 0:04:58.9]} 2. d4 {[%clk 0:04:57.9]} 2...
d5 {[%clk 0:04:56.4]} 3. Nd2 {[%clk 0:04:57.4]} 3... c5 {[%clk 0:04:49.3]} 4.
Ngf3 {[%clk 0:04:56.2]} 4... Nc6 {[%clk 0:04:46.8]} 5. exd5 {[%clk 0:04:55.1]}
5... exd5 {[%clk 0:04:44.9]} 6. Bb5 {[%clk 0:04:54.5]} 6... Bd6 {[%clk
0:04:41.5]} 7. dxc5 {[%clk 0:04:52.7]} 7... Bxc5 {[%clk 0:04:39.9]} 8. Nb3
{[%clk 0:04:52.3]} 8... Bd6 {[%clk 0:04:37.1]} 9. O-O {[%clk 0:04:51.9]} 9...
Nf6 {[%clk 0:04:32.1]} 10. Re1+ {[%clk 0:04:50.9]} 10... Be6 {[%clk 0:04:30.1]}
11. Nbd4 {[%clk 0:04:49.8]} 11... Qe7 {[%clk 0:04:22.2]} 12. Nxc6 {[%clk
0:04:47.7]} 12... bxc6 {[%clk 0:04:17]} 13. Bxc6+ {[%clk 0:04:47.6]} 13... Bd7
{[%clk 0:04:12.9]} 14. Bxa8 {[%clk 0:04:47.5]} 1-0

[Event "Live Chess"]
[Site "Chess.com"]
[Date "2024.06.01"]
[Round "-"]
[White "cymbalshift"]
[Black "NeilDruggan73"]
[Result "0-1"]
[WhiteElo "1658"]
[BlackElo "1756"]
[TimeControl "300"]
[EndTime "13:08:44 PDT"]
[Termination "NeilDruggan73 won by checkmate"]

1. d4 {[%clk 0:04:57.6]} 1... Nf6 {[%clk 0:04:57.8]} 2. c4 {[%clk 0:04:54.5]}
2... g6 {[%clk 0:04:55.7]} 3. Nc3 {[%clk 0:04:53.7]} 3... Bg7 {[%clk 0:04:54.6]}
4. e4 {[%clk 0:04:53.3]} 4... d6 {[%clk 0:04:53.4]} 5. f3 {[%clk 0:04:52.7]}
5... O-O {[%clk 0:04:51]} 6. Nge2 {[%clk 0:04:52.3]} 6... b6 {[%clk 0:04:48.4]}
7. Be3 {[%clk 0:04:48.5]} 7... c5 {[%clk 0:04:46.8]} 8. d5 {[%clk 0:04:45.8]}
8... Nbd7 {[%clk 0:04:39.5]} 9. h4 {[%clk 0:04:40.8]} 9... h5 {[%clk 0:04:30.7]}
10. Nf4 {[%clk 0:04:16]} 10... Ne5 {[%clk 0:04:27.8]} 11. Be2 {[%clk 0:04:11.3]}
11... Ba6 {[%clk 0:04:20.8]} 12. Qa4 {[%clk 0:04:02.8]} 12... Qc8 {[%clk
0:04:08.2]} 13. g4 {[%clk 0:03:42]} 13... hxg4 {[%clk 0:04:04.6]} 14. h5 {[%clk
0:03:40.6]} 14... gxf3 {[%clk 0:03:54.9]} 15. hxg6 {[%clk 0:03:38.2]} 15... fxe2
{[%clk 0:03:51.1]} 16. gxf7+ {[%clk 0:03:33]} 16... Kxf7 {[%clk 0:03:46.5]} 17.
Ne6 {[%clk 0:03:26.7]} 17... Rh8 {[%clk 0:03:40.8]} 18. Kxe2 {[%clk 0:03:23]}
18... Nxc4 {[%clk 0:03:30.7]} 19. Ng5+ {[%clk 0:03:06.1]} 19... Kg6 {[%clk
0:02:58.1]} 20. Nb5 {[%clk 0:02:03.9]} 20... Nxe3 {[%clk 0:02:56.4]} 21. Kxe3
{[%clk 0:01:57.7]} 21... Rxh1 {[%clk 0:02:52.8]} 22. Rxh1 {[%clk 0:01:55.7]}
22... Kxg5 {[%clk 0:02:45.1]} 23. Rg1+ {[%clk 0:01:50.8]} 23... Kh6 {[%clk
0:02:40.3]} 24. e5 {[%clk 0:01:45.8]} 24... Qh3+ {[%clk 0:02:27.8]} 25. Kf2
{[%clk 0:01:37.7]} 25... Qf5+ {[%clk 0:02:15.9]} 26. Ke1 {[%clk 0:01:28.4]}
26... Qxe5+ {[%clk 0:02:12]} 27. Kd1 {[%clk 0:01:27.6]} 27... Qxd5+ {[%clk
0:02:06.8]} 28. Kc1 {[%clk 0:01:26.7]} 28... Ne4 {[%clk 0:01:42.6]} 29. Nc7
{[%clk 0:01:13.1]} 29... Qd2+ {[%clk 0:01:38.4]} 30. Kb1 {[%clk 0:01:11.8]}
30... Qxb2# {[%clk 0:01:36.9]} 0-1

[Event "Live Chess"]
[Site "Chess.com"]
[Date "2024.06.01"]
[Round "-"]
[White "Delacorta"]
[Black "ShanthamGrarks"]
[Result "1-0"]
[WhiteElo "1561"]
[BlackElo "1832"]
[TimeControl "300"]
[EndTime "13:08:58 PDT"]
[Termination "Delacorta won by resignation"]

1. d4 {[%clk 0:04:57.8]} 1... Nf6 {[%clk 0:04:54.1]} 2. Nf3 {[%clk 0:04:57.7]}
2... e6 {[%clk 0:04:52.4]} 3. e3 {[%clk 0:04:57.6]} 3... d5 {[%clk 0:04:51.3]}
4. Bd3 {[%clk 0:04:57.5]} 4... c5 {[%clk 0:04:50.7]} 5. b3 {[%clk 0:04:56.7]}
5... Nc6 {[%clk 0:04:50.3]} 6. Bb2 {[%clk 0:04:55.3]} 6... cxd4 {[%clk
0:04:49.9]} 7. exd4 {[%clk 0:04:55.1]} 7... Bd6 {[%clk 0:04:47.8]} 8. Ne5 {[%clk
0:04:53]} 8... Qc7 {[%clk 0:04:46.8]} 9. f4 {[%clk 0:04:51.1]} 9... O-O {[%clk
0:04:43.4]} 10. O-O {[%clk 0:04:49.2]} 10... h6 {[%clk 0:04:42.6]} 11. Nd2
{[%clk 0:04:45]} 11... Ne4 {[%clk 0:04:41.9]} 12. Nxe4 {[%clk 0:04:43.4]} 12...
dxe4 {[%clk 0:04:41.6]} 13. Bxe4 {[%clk 0:04:42.8]} 13... f5 {[%clk 0:04:41.2]}
14. Bd3 {[%clk 0:04:41.3]} 14... Nxe5 {[%clk 0:04:36.8]} 15. fxe5 {[%clk
0:04:34.7]} 15... Be7 {[%clk 0:04:35.6]} 16. c4 {[%clk 0:04:27]} 16... b6 {[%clk
0:04:32]} 17. Be2 {[%clk 0:04:25.7]} 17... Bb7 {[%clk 0:04:31]} 18. Bf3 {[%clk
0:04:24.7]} 18... Rad8 {[%clk 0:04:27.8]} 19. Bxb7 {[%clk 0:04:21.6]} 19... Qxb7
{[%clk 0:04:26.4]} 20. Qf3 {[%clk 0:04:20.5]} 20... Qxf3 {[%clk 0:04:18.6]} 21.
Rxf3 {[%clk 0:04:18.9]} 21... Bg5 {[%clk 0:04:14.7]} 22. Rd1 {[%clk 0:04:10.6]}
22... Rd7 {[%clk 0:04:08.7]} 23. Rfd3 {[%clk 0:03:54.8]} 23... Rfd8 {[%clk
0:04:01.3]} 24. d5 {[%clk 0:03:49]} 24... exd5 {[%clk 0:03:59.4]} 25. cxd5
{[%clk 0:03:47.2]} 25... Rc7 {[%clk 0:03:49]} 26. d6 {[%clk 0:03:31.1]} 26...
Rc2 {[%clk 0:03:47]} 27. Bc3 {[%clk 0:02:46.7]} 27... Rxa2 {[%clk 0:03:39.4]}
28. e6 {[%clk 0:02:45.9]} 28... Re2 {[%clk 0:03:26.8]} 29. e7 {[%clk 0:02:31.2]}
29... Rd7 {[%clk 0:03:24.7]} 30. R3d2 {[%clk 0:01:59.9]} 30... Bxd2 {[%clk
0:03:18.7]} 31. Rxd2 {[%clk 0:01:59.3]} 31... Rxd2 {[%clk 0:03:16.9]} 32. e8=Q+
{[%clk 0:01:58]} 32... Kh7 {[%clk 0:03:12.9]} 33. Qxd7 {[%clk 0:01:54.1]} 33...
Rxd6 {[%clk 0:03:10.2]} 34. Qxf5+ {[%clk 0:01:52.3]} 34... Rg6 {[%clk
0:03:07.9]} 35. h4 {[%clk 0:01:49.6]} 35... h5 {[%clk 0:03:05.3]} 36. Kf2 {[%clk
0:01:47.2]} 36... a5 {[%clk 0:03:02.3]} 37. Qxh5+ {[%clk 0:01:45.7]} 37... Rh6
{[%clk 0:03:00.5]} 38. Qf5+ {[%clk 0:01:43.9]} 38... Rg6 {[%clk 0:02:59.4]} 39.
g4 {[%clk 0:01:40.7]} 39... Kh6 {[%clk 0:02:46.5]} 40. Bd2+ {[%clk 0:01:36.9]}
40... Kh7 {[%clk 0:02:43.9]} 41. h5 {[%clk 0:01:36.2]} 41... Kg8 {[%clk
0:02:42.1]} 42. Qxg6 {[%clk 0:01:35.3]} 42... a4 {[%clk 0:02:41.8]} 43. Bc3
{[%clk 0:01:34.4]} 1-0